bitfinex-derivatives/quotes_ETHF0:USTF0_20240910
["timestamp","ask_amount","ask_price","bid_price","bid_amount"]
[1725961810879,2.22573284,2353.7,2353.6,0.42485]
[1725961811078,2.22573284,2353.8,2353.7,0.42484]
[1725961811477,0.3937,2353.9,2353.8,0.42482]
[1725961813078,2.22573284,2354.0,2353.9,0.4248]
[1725961813386,2.22573284,2354.1,2354.0,0.42478]
[1725961813585,2.22573284,2354.3,2354.2,0.42475]
[1725961813787,2.22573284,2354.4,2354.2,0.42475]
[1725961814189,2.22573284,2354.4,2353.9,3.0305]
[1725961814377,2.22573284,2354.4,2353.9,0.3805]
[1725961814585,2.65,2354.2,2353.6,4.082]
[1725961814783,1.1582,2354.1,2353.5,43.8305]
[1725961814989,1.1582,2354.1,2354.0,0.42478]
[1725961815895,5.30042284,2354.6,2354.2,0.42475]
[1725961816089,0.3856,2354.4,2354.2,0.42475]
[1725961816388,0.3856,2354.4,2354.1,0.81446]
[1725961817384,0.3856,2354.4,2354.2,0.42474]
[1725961817792,0.3856,2354.4,2354.1,0.3897]
[1725961818098,0.3856,2354.4,2354.2,0.42474]
[1725961818596,0.3856,2354.4,2354.1,0.81445]
[1725961819087,0.3856,2354.4,2354.0,0.42477]
[1725961819088,3.0356,2354.4,2354.0,0.42477]
[1725961819300,3.46032,2354.4,2354.0,0.42477]
[1725961819482,0.42474,2354.3,2353.8,4.082]
[1725961819791,0.42474,2354.3,2353.9,0.42479]
[1725961819792,0.4048,2354.2,2353.9,0.42479]
[1725961819988,0.8008,2354.2,2353.9,0.42479]
[1725961820185,0.8008,2354.2,2354.1,0.42476]
[1725961820683,0.3856,2354.4,2354.2,0.42474]
[1725961821889,3.46032,2354.4,2353.8,4.082]
[1725961822390,3.46032,2354.4,2354.1,0.42476]
[1725961822592,3.0356,2354.4,2354.1,0.42476]
[1725961822789,3.46031,2354.4,2354.1,0.42476]
[1725961824389,3.46031,2354.4,2354.2,0.42474]
[1725961824892,3.0356,2354.4,2354.2,0.42474]
[1725961825192,0.214,2354.8,2354.7,0.42466]
[1725961825495,1.20443,2354.9,2354.3,0.3945]
[1725961825693,1.20443,2354.9,2354.6,0.42467]
[1725961825888,1.20443,2354.9,2354.4,0.3841]
[1725961825889,1.20443,2354.9,2354.5,0.42468]
[1725961826596,1.20443,2354.9,2354.4,0.3841]
[1725961826597,0.3778,2354.8,2354.6,0.42467]
[1725961827186,0.3778,2354.8,2354.7,0.42466]
[1725961827598,0.3778,2354.8,2354.6,0.42466]
[1725961827903,0.3778,2354.8,2354.7,0.42466]
[1725961828701,0.3778,2354.8,2354.6,0.42466]
[1725961832399,0.3778,2354.8,2354.7,0.42466]
[1725961832601,0.3778,2354.8,2354.4,0.3841]
[1725961832803,0.42468,2354.6,2354.3,0.42471]
[1725961833107,0.3669,2354.5,2354.3,0.42471]
[1725961833303,0.4043,2354.4,2354.3,0.42471]
[1725961833807,0.4043,2354.4,2354.2,0.42475]
[1725961833808,0.82902,2354.4,2354.2,0.42475]
[1725961834016,0.4044,2354.3,2354.2,0.42475]
[1725961837718,0.4044,2354.3,2354.1,0.42475]
[1725961839226,1.46625,2354.3,2353.7,4.082]
[1725961839530,0.42479,2354.0,2353.8,0.42481]
[1725961839714,0.7433,2353.9,2353.8,0.42481]
[1725961839915,1.1339,2353.9,2353.8,0.42481]
[1725961840133,0.7433,2353.9,2353.8,0.42481]
[1725961840520,0.3782,2353.9,2353.8,0.42481]
[1725961841623,0.3782,2353.9,2353.7,0.3823]
[1725961841814,0.3782,2353.9,2353.2,7.0363]
[1725961842016,0.3945,2353.8,2353.5,0.394]
[1725961842219,0.3945,2353.8,2353.6,0.42485]
[1725961842426,0.81933,2353.8,2353.5,0.81886]
[1725961843026,0.81933,2353.8,2353.5,0.81887]
[1725961843221,0.3811,2353.7,2353.5,0.81887]
[1725961843628,0.42485,2353.6,2353.4,0.4004]
[1725961843821,0.3851,2353.5,2353.4,0.4004]
[1725961844228,0.80997,2353.5,2353.3,0.394]
[1725961844727,0.3851,2353.5,2353.3,0.8189]
[1725961845029,0.3851,2353.5,2353.4,0.42489]
[1725961845717,0.80997,2353.5,2353.3,0.8189]
[1725961845921,0.3851,2353.5,2353.4,0.42489]
[1725961846121,0.3811,2353.7,2353.3,0.394]
[1725961846324,0.3831,2353.7,2353.5,0.42486]
[1725961846525,0.3831,2353.7,2353.6,0.384]
[1725961846924,0.80794,2353.7,2353.6,0.384]
[1725961847130,0.80794,2353.7,2353.4,0.42488]
[1725961848332,0.80794,2353.7,2353.5,0.42487]
[1725961852937,0.80794,2353.7,2353.4,0.42488]
[1725961853137,0.42485,2353.6,2353.4,0.42488]
[1725961853732,0.80795,2353.7,2353.3,0.778]
[1725961853940,0.80795,2353.7,2353.3,1.2029]
[1725961853941,0.42488,2353.5,2353.3,1.2029]
[1725961854247,0.42487,2353.6,2353.4,0.42489]
[1725961854432,0.42487,2353.5,2353.3,1.2029]
[1725961855544,0.42487,2353.6,2353.3,0.778]
[1725961855741,0.42487,2353.6,2353.4,0.42489]
[1725961856443,0.42487,2353.6,2353.3,1.2029]
[1725961856846,0.42487,2353.5,2353.3,1.2029]
[1725961857447,0.3831,2353.7,2353.3,0.778]
[1725961857647,1.18981,2353.9,2353.6,0.42485]
[1725961857941,0.42482,2353.8,2353.7,0.7301]
[1725961863646,0.42482,2353.8,2353.7,0.3649]
[1725961863854,0.42484,2353.7,2353.5,0.42487]
[1725961864048,0.3957,2353.6,2353.5,0.42487]
[1725961867452,0.3957,2353.6,2353.3,0.7424]
[1725961867657,0.3957,2353.6,2353.5,0.42487]
[1725961867954,0.3957,2353.6,2353.4,0.42488]
[1725961868150,0.3957,2353.6,2353.5,0.42487]
[1725961868348,0.42482,2353.8,2353.6,0.42484]
[1725961868542,0.42482,2353.8,2353.7,0.7507]
[1725961869047,1.1543,2353.9,2353.7,0.7507]
[1725961869344,0.42478,2354.1,2353.7,4.9995]
[1725961869546,0.7623,2354.2,2353.9,0.42479]
[1725961869750,0.42477,2354.1,2353.9,0.42479]
[1725961869944,0.42477,2354.1,2353.8,0.42481]
[1725961870550,0.42479,2354.0,2353.8,0.42481]
[1725961871347,0.42479,2354.0,2353.7,1.17552]
[1725961871649,0.80991,2353.9,2353.7,0.3714]
[1725961871855,0.7643,2353.8,2353.7,0.3714]
[1725961872069,0.7643,2353.8,2353.7,0.79624]
[1725961872954,0.7643,2353.8,2353.7,0.3714]
[1725961873857,0.3801,2353.8,2353.7,0.79624]
[1725961874054,0.78967,2354.1,2353.8,0.4248]
[1725961874257,0.78967,2354.1,2353.9,0.8069]
[1725961874453,0.78967,2354.1,2354.0,0.42478]
[1725961874454,0.3649,2354.1,2354.0,0.42478]
[1725961874755,1.21885,2354.2,2353.9,0.80689]
[1725961875054,0.42477,2354.1,2353.9,0.80689]
[1725961878345,0.4013,2354.2,2354.1,0.42476]
[1725961878549,2.65045284,2354.4,2354.1,0.42475]
[1725961878753,0.42473,2354.3,2354.1,0.42475]
[1725961878954,1.66711199,2354.3,2354.2,0.3835]
[1725961880154,1.66711199,2354.3,2354.2,5.05625]
[1725961880354,0.3942,2354.4,2354.3,0.42473]
[1725961880659,2.06131199,2354.4,2354.3,0.80923]
[1725961880856,2.06131199,2354.4,2354.3,0.3845]
[1725961881555,2.06131199,2354.4,2354.3,0.80923]
[1725961881556,0.3942,2354.4,2354.3,0.80923]
[1725961882857,0.3942,2354.4,2354.3,0.3845]
[1725961883257,0.3942,2354.4,2354.2,0.80824]
[1725961883258,0.42473,2354.3,2354.2,0.3835]
[1725961883459,2.7825668,2354.3,2354.1,0.42476]
[1725961883754,2.22283071,2354.2,2354.1,0.42476]
[1725961884160,2.22283071,2354.2,2354.0,0.42477]
[1725961884358,2.22283071,2354.2,2354.0,0.42478]
[1725961884570,2.22283071,2354.1,2354.0,0.42478]
[1725961885257,2.22283071,2354.1,2353.9,1.17959]
[1725961885258,2.99033071,2354.1,2353.9,1.17959]
[1725961885455,2.59553071,2354.0,2353.9,1.17959]
[1725961886061,0.3727,2354.0,2353.9,1.17959]
[1725961886755,2.59553071,2354.0,2353.9,1.17959]
[1725961887161,0.3727,2354.0,2353.9,1.17959]
[1725961888556,2.0398244,2354.0,2353.9,1.17959]
[1725961888755,2.03977766,2354.0,2353.9,1.17959]
[1725961888950,0.3727,2354.0,2353.9,1.17959]
[1725961890051,2.22283071,2354.1,2354.0,0.42478]
[1725961890257,1.66695669,2354.1,2353.9,3.4048]
[1725961890457,1.66695669,2354.2,2354.1,0.42476]
[1725961890660,1.66695669,2354.3,2354.2,0.42475]
[1725961890960,1.66695669,2354.5,2354.3,0.42472]
[1725961891165,1.66695669,2354.5,2354.4,0.3685]
[1725961892068,2.46713669,2354.6,2354.4,0.3685]
[1725961892661,2.04245669,2354.6,2354.4,0.3685]
[1725961892856,1.66695669,2354.7,2354.6,0.42467]
[1725961893061,1.66695669,2354.8,2354.7,0.42466]
[1725961893464,2.04245669,2354.9,2354.6,0.42466]
[1725961893663,2.46707669,2354.9,2354.6,0.42466]
[1725961894261,2.04245669,2354.9,2354.6,0.42466]
[1725961894968,2.46707669,2354.9,2354.6,0.42466]
[1725961895168,2.04245669,2354.9,2354.6,0.42466]
[1725961895671,1.66695669,2354.9,2354.8,0.42464]
[1725961895973,1.66695669,2355.4,2355.1,0.42458]
[1725961896269,2.83589669,2355.4,2355.2,0.3683]
[1725961896469,1.16894,2355.4,2355.2,0.3683]
[1725961897361,0.7444,2355.4,2355.2,0.3683]
[1725961897564,0.7444,2355.4,2355.2,0.79285]
[1725961897966,1.66695669,2355.3,2355.2,0.79285]
[1725961898362,1.66695669,2355.3,2355.2,0.79287]
[1725961899068,1.66695669,2355.3,2355.2,0.3683]
[1725961899373,2.41135669,2355.4,2355.2,0.3683]
[1725961899674,1.66695669,2355.3,2355.2,0.3683]
[1725961900566,2.41135669,2355.4,2355.2,0.3683]
[1725961900871,0.42456,2355.3,2354.8,0.42464]
[1725961901071,0.42456,2355.3,2354.7,3.046]
[1725961901072,1.66125627,2355.2,2354.7,3.046]
[1725961901274,1.66125627,2355.2,2354.8,0.42463]
[1725961901462,1.66125627,2355.2,2354.7,0.396]
[1725961901463,0.81478,2355.1,2354.7,0.396]
[1725961901666,0.8179,2355.0,2354.7,0.396]
[1725961901868,0.4004,2354.9,2354.6,4.50667]
[1725961902165,0.4004,2354.9,2354.6,0.42467]
[1725961902760,0.4004,2354.9,2354.7,0.42466]
[1725961902960,0.4004,2354.9,2354.6,0.42466]
[1725961903765,0.4004,2354.9,2354.8,0.42464]
[1725961904667,0.4004,2354.9,2354.7,3.07465]
[1725961904862,0.4004,2354.9,2354.7,2.65]
[1725961905072,0.82503,2354.9,2354.5,3.45789]
[1725961905265,0.42464,2354.8,2354.5,0.3832]
[1725961905477,1.66125627,2354.8,2354.5,0.42469]
[1725961905673,0.3825,2354.7,2354.5,0.42469]
[1725961905972,0.3825,2354.7,2354.6,0.42467]
[1725961906180,0.42458,2355.2,2354.8,0.42464]
[1725961906363,1.54219,2355.1,2354.7,0.42465]
[1725961906563,1.54219,2355.1,2354.6,3.45786]
[1725961906873,1.54219,2355.1,2354.7,0.42466]
[1725961907070,0.4246,2355.0,2354.6,3.45786]
[1725961907873,0.4246,2355.0,2354.7,0.42466]
[1725961908075,1.1176,2355.1,2354.6,3.0332]
[1725961908378,1.1176,2355.1,2355.0,0.4246]
[1725961908677,1.1176,2355.1,2354.9,0.42461]
[1725961909069,2.18477627,2355.5,2355.0,0.4246]
[1725961909374,2.18477627,2355.5,2355.2,0.42457]
[1725961909375,0.3751,2355.4,2355.2,0.42457]
[1725961909589,0.3751,2355.4,2355.1,0.81838]
[1725961909877,0.3751,2355.4,2355.2,0.42456]
[1725961910067,0.3751,2355.4,2355.1,0.81838]
[1725961910264,0.3751,2355.4,2355.1,0.42458]
[1725961912371,0.79963,2355.4,2355.0,0.80799]
[1725961913769,0.79963,2355.4,2355.1,0.42458]
[1725961914866,0.42455,2355.3,2355.0,0.42459]
[1725961915875,0.4246,2355.1,2354.7,0.3706]
[1725961916084,1.19181,2355.0,2354.7,0.79525]
[1725961916382,1.1528,2355.0,2354.8,0.42464]
[1725961916973,1.1528,2355.0,2354.9,0.42462]
[1725961917371,1.1528,2355.0,2354.8,0.42462]
[1725961918377,0.42467,2354.7,2354.2,4.082]
[1725961918675,0.3836,2354.6,2354.4,0.42471]
[1725961918866,0.4013,2354.5,2354.4,0.42471]
[1725961919586,0.4013,2354.5,2354.1,43.8382]
[1725961919980,0.82599,2354.5,2354.2,0.42473]
[1725961920178,0.4013,2354.5,2354.3,0.42473]
[1725961921078,0.826,2354.5,2354.2,0.42473]
[1725961921380,0.42473,2354.4,2353.9,3.022]
[1725961921581,0.42473,2354.4,2354.1,0.42476]
[1725961921582,0.80752,2354.4,2354.1,0.42476]
[1725961922579,0.42475,2354.2,2354.0,0.3849]
[1725961922783,0.42474,2354.3,2354.0,0.80968]
[1725961922977,0.42476,2354.1,2353.9,41.22479]
[1725961923179,0.3971,2354.0,2353.9,41.22479]
[1725961924285,0.3971,2354.0,2353.8,0.42481]
[1725961924482,0.3971,2354.0,2353.9,0.4248]
[1725961924679,0.7773,2354.0,2353.9,0.4248]
[1725961925283,0.42481,2353.9,2353.6,0.42485]
[1725961925683,3.4273,2354.0,2353.6,0.42485]
[1725961925889,1.20209,2354.0,2353.6,0.42485]
[1725961926081,0.7773,2354.0,2353.6,0.42485]
[1725961927382,0.42481,2353.9,2353.5,0.42486]
[1725961927784,0.42481,2353.9,2353.6,0.42485]
[1725961927785,0.3915,2353.8,2353.6,0.42485]
[1725961928381,0.3915,2353.8,2353.5,0.42486]
[1725961928382,0.81632,2353.8,2353.5,0.42486]
[1725961928585,0.3915,2353.8,2353.5,0.42486]
[1725961928788,0.3915,2353.8,2353.6,0.42485]
[1725961929888,0.7773,2354.0,2353.6,2.65]
[1725961930088,1.66125627,2354.2,2353.8,2.65]
[1725961930292,1.66125627,2354.2,2353.9,1.18979]
[1725961930491,1.66125627,2354.2,2354.0,0.42477]
[1725961930891,2.08600627,2354.2,2353.9,1.18979]
[1725961931092,0.3742,2354.1,2353.9,1.18979]
[1725961931290,3.0475,2354.0,2353.4,40.8]
[1725961931599,3.0475,2354.0,2353.4,0.42487]
[1725961931600,0.42485,2353.7,2353.4,0.42487]
[1725961931802,0.82236,2353.6,2353.3,0.7962]
[1725961932101,1.19656,2353.6,2353.3,0.7962]
[1725961932689,0.7717,2353.6,2353.4,0.42489]
[1725961932887,0.7717,2353.6,2353.5,0.42487]
[1725961933890,0.7717,2353.6,2353.4,0.42488]
[1725961934094,1.19656,2353.6,2353.3,0.7962]
[1725961934491,3.4217,2353.6,2353.2,0.42492]
[1725961934699,0.42488,2353.5,2353.1,0.3842]
[1725961934994,0.3659,2353.4,2353.2,0.42492]
[1725961935590,0.3659,2353.4,2353.3,0.42491]
[1725961936185,0.42487,2353.5,2353.3,0.42491]
[1725961936686,1.19657,2353.6,2353.3,0.42491]
[1725961937799,0.7717,2353.6,2353.4,0.42489]
[1725961937998,1.19657,2353.6,2353.3,0.4249]
[1725961938391,1.19657,2353.6,2353.4,0.3833]
[1725961939291,1.19657,2353.6,2353.4,0.80819]
[1725961939490,1.19657,2353.6,2353.4,0.3833]
[1725961940088,0.42487,2353.5,2353.4,0.3833]
[1725961940501,4.67367,2353.5,2353.3,0.4249]
[1725961940685,0.3737,2353.4,2353.3,0.4249]
[1725961947997,0.79859,2353.4,2353.3,0.4249]
[1725961948202,0.3737,2353.4,2353.3,0.4249]
[1725961950005,0.7717,2353.6,2353.5,0.42487]
[1725961950306,0.79765,2353.7,2353.5,0.42487]
[1725961950802,0.79765,2353.7,2353.6,0.3782]
[1725961951009,0.42486,2353.6,2353.4,0.42488]
[1725961951193,0.42485,2353.6,2353.3,0.42489]
[1725961951397,0.42485,2353.6,2353.4,0.42488]
[1725961951597,0.7772,2353.5,2353.4,0.42488]
[1725961952104,0.79765,2353.7,2353.5,0.42486]
[1725961952300,0.3728,2353.7,2353.6,0.42485]
[1725961952505,0.42483,2353.8,2353.6,0.42485]
[1725961953305,0.42485,2353.7,2353.5,0.79666]
[1725961953507,0.3911,2353.6,2353.5,0.79666]
[1725961953906,0.3911,2353.6,2353.5,0.42486]
[1725961955310,0.42489,2353.4,2353.3,0.3942]
[1725961955610,0.42489,2353.4,2353.3,0.81911]
[1725961956197,0.42489,2353.4,2353.3,0.3942]
[1725961956404,0.42489,2353.4,2353.3,0.8191]
[1725961957301,1.21209,2353.5,2353.3,0.8191]
[1725961958203,1.21209,2353.5,2353.4,0.42489]
[1725961958404,1.21209,2353.5,2353.3,0.8191]
[1725961959508,1.21209,2353.5,2353.2,0.42492]
[1725961959509,3.4372,2353.5,2353.2,0.42492]
[1725961959703,3.86208,2353.5,2353.3,0.42491]
[1725961960010,1.21208,2353.5,2353.3,0.42491]
[1725961960205,0.7872,2353.5,2353.2,0.42492]
[1725961960510,1.21208,2353.5,2353.3,0.42491]
[1725961963508,3.42735321,2353.5,2353.3,0.42491]
[1725961963712,0.4249,2353.4,2353.2,0.42492]
[1725961963915,0.42491,2353.3,2353.1,0.79074]
[1725961964211,2.21527321,2353.4,2353.2,0.42493]
[1725961964212,2.64017321,2353.4,2353.2,0.42493]
[1725961964410,2.21527321,2353.3,2353.2,0.42493]
[1725961965411,3.2074668,2353.4,2353.2,0.42493]
[1725961966108,2.22439275,2353.3,2353.2,0.42493]
[1725961966506,0.42489,2353.4,2353.2,0.42491]
[1725961966699,0.42489,2353.4,2353.2,0.42493]
[1725961966908,0.42489,2353.4,2353.3,0.42491]
[1725961967312,3.43648275,2353.5,2353.3,0.42491]
[1725961967812,2.22439275,2353.4,2353.3,0.42491]
[1725961968108,3.43648275,2353.5,2353.3,0.42491]
[1725961969317,2.22439275,2353.4,2353.3,0.42491]
[1725961969817,2.64929275,2353.4,2353.2,0.42492]
[1725961970009,2.22439275,2353.4,2353.3,0.42491]
[1725961970515,0.42489,2353.4,2353.3,0.42491]
[1725961970711,2.22713843,2353.4,2353.3,0.42491]
[1725961971018,2.65203843,2353.4,2353.1,0.3658]
[1725961971215,2.65203843,2353.4,2353.3,0.42491]
[1725961971416,0.4249,2353.4,2353.3,0.42491]
[1725961971720,3.2074668,2353.4,2353.3,0.42491]
[1725961971916,0.4249,2353.4,2353.3,0.42491]
[1725961972218,0.4249,2353.4,2353.3,1.08919972]
[1725961972719,0.42489,2353.4,2353.3,0.66428972]
[1725961973015,3.2074568,2353.4,2353.3,0.66428972]
[1725961973208,3.9946568,2353.5,2353.3,1.08918972]
[1725961973413,3.9946568,2353.5,2353.3,0.4249]
[1725961973414,1.21209,2353.5,2353.3,0.4249]
[1725961973614,0.42489,2353.4,2353.3,0.4249]
[1725961973813,0.42489,2353.4,2353.3,1.08918273]
[1725961974515,1.21208,2353.5,2353.3,1.08918273]
[1725961974815,0.7872,2353.5,2353.4,0.42489]
[1725961975019,1.21207,2353.5,2353.4,0.66425334]
[1725961975318,1.21207,2353.5,2353.3,0.4249]
[1725961976008,0.42489,2353.4,2353.3,0.4249]
[1725961976313,0.7872,2353.5,2353.3,1.08917193]
[1725961976511,1.21209,2353.5,2353.3,0.4249]
[1725961976718,3.21177685,2353.4,2353.3,0.4249]
[1725961976910,3.21177685,2353.4,2353.3,1.08915213]
[1725961976911,0.42489,2353.4,2353.3,1.08915213]
[1725961979010,2.43208,2353.5,2353.3,1.08915213]
[1725961979214,2.43208,2353.5,2353.3,0.4249]
[1725961980525,2.78722116,2353.4,2353.3,0.4249]
[1725961980721,2.78722116,2353.4,2353.3,1.08918088]
[1725961981723,3.21211116,2353.4,2353.3,0.66428088]
[1725961981913,3.21211116,2353.4,2353.3,1.08919088]
[1725961982426,0.42489,2353.4,2353.2,0.42492]
[1725961982618,2.78729284,2353.3,2353.2,0.42492]
[1725961983017,2.78729284,2353.3,2353.2,1.08920824]
[1725961983331,2.78729284,2353.4,2353.3,0.42491]
[1725961983811,2.78729284,2353.4,2353.3,1.08918312]
[1725961984217,3.21218284,2353.4,2353.3,1.08918312]
[1725961985524,2.78729284,2353.4,2353.3,1.08918312]
[1725961986420,2.78729284,2353.5,2353.4,1.48712]
[1725961986624,2.88629284,2354.0,2353.9,0.4248]
[1725961986826,2.22916247,2354.0,2353.9,5.8928]
[1725961987025,2.22916247,2354.1,2354.0,0.42478]
[1725961987218,2.22916247,2354.1,2354.0,3.7879543]
[1725961987418,1.159,2354.4,2354.0,2.25110135]
[1725961987419,2.22916247,2354.2,2354.0,2.25110135]
[1725961987717,2.22916247,2354.3,2354.2,0.42475]
[1725961987923,1.22,2354.3,2354.0,1.47800101]
[1725961988224,2.22690691,2354.1,2353.8,0.42481]
[1725961988415,0.3952,2354.0,2353.7,0.3908]
[1725961988622,2.22623021,2353.8,2353.7,0.81564]
[1725961988831,2.22623021,2353.8,2353.7,1.47973595]
[1725961989332,2.22623021,2353.9,2353.8,0.42482]
[1725961989523,2.22623021,2353.9,2353.8,1.08891595]
[1725961989927,2.22623021,2353.9,2353.8,1.46011595]
[1725961990426,2.22623021,2354.1,2354.0,0.42478]
[1725961990621,2.22623021,2354.1,2354.0,1.08887595]
[1725961991121,2.78729284,2354.2,2354.0,0.42478]
[1725961991330,2.78729284,2354.2,2353.8,3.0212]
[1725961991331,2.78729284,2354.2,2353.8,0.3712]
[1725961991631,2.22404553,2354.2,2353.9,3.31404621]
[1725961991829,2.22404553,2354.1,2354.0,1.48002621]
[1725961992134,2.22404553,2354.2,2354.0,1.05524621]
[1725961992325,2.22404553,2354.2,2354.1,0.3737]
[1725961992718,2.22404553,2354.2,2354.1,0.79846]
[1725961993823,2.22404553,2354.2,2354.1,0.3737]
[1725961994128,2.78729284,2354.3,2354.1,0.3737]
[1725961994520,0.3854,2354.2,2354.1,0.3737]
[1725961995029,0.42477,2354.1,2353.9,0.3659]
[1725961995225,0.7535,2354.0,2353.9,0.3659]
[1725961995527,0.7535,2354.0,2353.9,0.7907]
[1725961995722,0.7535,2354.0,2353.9,0.3659]
[1725961996923,0.7535,2354.0,2353.8,0.42481]
[1725961999640,1.17829,2354.0,2353.8,0.42481]
[1725961999830,0.7535,2354.0,2353.8,0.42481]
[1725962000129,0.7535,2354.0,2353.9,0.4248]
[1725962000327,1.17828,2354.0,2353.8,0.42481]
[1725962001334,0.7535,2354.0,2353.8,0.42481]
[1725962001529,0.7535,2354.0,2353.7,0.3659]
[1725962001530,1.17829,2354.0,2353.7,0.3659]
[1725962001831,0.42481,2353.9,2353.7,0.3659]
[1725962002026,0.42481,2353.9,2353.7,0.79073]
[1725962002231,0.3668,2353.8,2353.7,0.79073]
[1725962004536,0.79162,2353.8,2353.6,0.42484]
[1725962004740,0.79162,2353.8,2353.7,0.42484]
[1725962004741,0.3668,2353.8,2353.7,0.42484]
[1725962005930,0.42484,2353.7,2353.5,0.42486]
[1725962006131,0.366,2353.6,2353.5,0.42486]
[1725962010747,0.7381,2353.6,2353.5,0.42486]
[1725962017640,1.16295,2353.6,2353.5,0.42486]
[1725962017840,0.7381,2353.6,2353.5,0.42486]
[1725962018248,1.16295,2353.6,2353.5,0.42486]
[1725962018551,0.7381,2353.6,2353.5,0.42486]
[1725962020459,1.16295,2353.6,2353.5,0.42486]
[1725962021140,0.7381,2353.6,2353.5,0.42486]
[1725962022949,1.16295,2353.6,2353.5,0.42486]
[1725962029364,2.58880736,2353.8,2353.7,0.42484]
[1725962029554,2.22200736,2353.9,2353.8,0.42482]
[1725962029761,2.64677736,2354.1,2353.9,0.42479]
[1725962029956,0.3908,2354.2,2353.7,1.22]
[1725962029957,2.61280736,2354.2,2353.7,1.22]
[1725962030155,2.22200736,2354.3,2354.1,0.42476]
[1725962030554,2.64673736,2354.3,2354.0,0.79087]
[1725962030864,2.22200736,2354.3,2354.1,0.42476]
[1725962031169,2.64673736,2354.3,2354.0,0.79087]
[1725962033963,0.42475,2354.2,2353.9,0.82799]
[1725962034162,0.81675,2354.2,2353.9,0.82799]
[1725962034467,0.42478,2354.1,2353.9,0.4032]
[1725962034654,0.3835,2354.0,2353.9,0.4032]
[1725962034859,0.3835,2354.0,2353.9,0.828]
[1725962035159,0.3835,2354.0,2353.9,0.4032]
[1725962035358,0.80828,2354.0,2353.9,0.4032]
[1725962036362,0.80828,2354.0,2353.7,0.80942]
[1725962036570,2.425,2353.9,2353.7,0.3846]
[1725962038070,2.0002,2353.9,2353.7,0.80943]
[1725962038265,2.0002,2353.9,2353.8,0.42482]
[1725962038568,0.7802,2353.9,2353.7,0.80942]
[1725962039565,1.20501,2353.9,2353.7,0.3846]
[1725962039765,0.42484,2353.7,2353.4,0.42488]
[1725962039965,0.8045,2353.6,2353.5,0.42487]
[1725962040972,2.61020736,2353.9,2353.5,4.2488]
[1725962041277,3.03501736,2353.9,2353.7,0.42484]
[1725962041668,2.22200736,2353.8,2353.6,0.42484]
[1725962042167,2.22200736,2353.8,2353.7,0.82784]
[1725962043372,3.44200736,2353.8,2353.4,0.42488]
[1725962043577,3.44200736,2353.8,2353.5,0.42487]
[1725962043578,1.22,2353.6,2353.5,0.42487]
[1725962043772,1.22,2353.6,2353.4,0.82298]
[1725962043974,0.7697,2353.5,2353.4,0.82298]
[1725962044363,0.7697,2353.5,2353.4,1.48719119]
[1725962046674,0.7697,2353.5,2353.4,1.4871803]
[1725962050077,0.3959,2353.5,2353.4,1.4871803]
[1725962053480,0.3959,2353.5,2353.4,1.48716308]
[1725962057182,0.3959,2353.5,2353.4,0.82298]
[1725962057378,0.3959,2353.5,2353.4,1.4871814]
[1725962058582,0.3959,2353.5,2353.4,2.15137336]
[1725962058776,0.3959,2353.5,2353.4,1.48717196]
[1725962058971,0.3959,2353.5,2353.4,1.08908196]
[1725962059875,0.3959,2353.5,2353.4,0.42489]
[1725962064482,2.61790736,2353.5,2353.4,0.42489]
[1725962071390,3.04277736,2353.5,2353.4,0.42489]
[1725962071593,0.82077,2353.5,2353.4,0.42489]
[1725962075895,2.04077,2353.5,2353.4,0.42489]
[1725962076283,4.26277736,2353.5,2353.4,0.42489]
[1725962076593,2.61790736,2353.5,2353.4,0.42489]
[1725962076794,3.04277736,2353.5,2353.4,0.42489]
[1725962078090,3.04277736,2353.5,2353.3,0.42489]
[1725962078794,0.82077,2353.5,2353.4,0.42489]
[1725962078995,0.82077,2353.5,2353.2,0.3951]
[1725962078996,0.3959,2353.5,2353.2,0.3951]
[1725962079185,2.22707894,2353.4,2353.3,0.42491]
[1725962080393,2.22707894,2353.4,2353.3,1.08918678]
[1725962080982,2.22707894,2353.4,2353.3,1.08918666]
[1725962083187,2.65196894,2353.4,2353.3,1.08918666]
[1725962083393,2.65196894,2353.4,2353.3,0.42491]
[1725962083592,0.42489,2353.4,2353.3,1.08918935]
[1725962083794,2.65347522,2353.4,2353.3,1.08918935]
[1725962084297,0.42489,2353.4,2353.3,1.08918935]
[1725962086699,2.65385154,2353.4,2353.3,1.08918935]
[1725962087292,2.65394987,2353.4,2353.3,1.08918935]
[1725962087488,0.42489,2353.4,2353.3,1.08918935]
[1725962088195,3.18319284,2353.5,2353.4,0.42489]
[1725962088396,3.18319284,2353.5,2353.4,1.08916935]
[1725962088592,0.42489,2353.4,2353.3,0.4249]
[1725962088790,0.42489,2353.4,2353.3,1.08917415]
[1725962089593,3.21218284,2353.4,2353.3,1.08917415]
[1725962089793,3.21218284,2353.4,2353.3,0.66427415]
[1725962090000,5.49441284,2353.4,2353.3,0.66427415]
[1725962090205,9.74401284,2353.4,2353.3,0.66427415]
[1725962090496,0.42497,2353.0,2352.7,1.11100101]
[1725962090701,12.53183,2353.4,2352.8,2.5268783]
[1725962090702,3.82013329,2352.9,2352.8,2.5268783]
[1725962090892,3.82013329,2352.9,2352.8,1.46386396]
[1725962092199,3.82013329,2352.9,2352.8,0.79948]
[1725962093089,3.26151178,2352.9,2352.8,1.46384436]
[1725962093293,2.04151178,2352.9,2352.8,1.46384436]
[1725962093693,0.3705,2352.9,2352.8,0.79948]
[1725962094295,2.04082228,2352.9,2352.8,0.79948]
[1725962094691,1.6701797,2353.0,2352.8,5.28923738]
[1725962095001,1.6701797,2353.0,2352.9,1.43533738]
[1725962095301,1.6701797,2353.0,2352.9,1.19598]